bitfinex/quotes_BTCUSD_20250726
["timestamp","ask_amount","ask_price","bid_price","bid_amount"]
[1753547250493,0.46654556,118300.0,118290.0,0.90696804]
[1753547250648,0.45809262,118300.0,118290.0,0.90696804]
[1753547251197,0.45809262,118300.0,118290.0,0.53840351]
[1753547251411,0.43919725,118300.0,118290.0,0.90696804]
[1753547251626,0.45610262,118300.0,118290.0,0.90696804]
[1753547252055,0.45610262,118300.0,118290.0,0.90993804]
[1753547253339,0.44764983,118300.0,118290.0,0.90993804]
[1753547254003,0.45610255,118300.0,118290.0,0.90993804]
[1753547254428,0.45610248,118300.0,118290.0,0.90993804]
[1753547254669,0.43919725,118300.0,118290.0,1.27850257]
[1753547254871,0.09919725,118300.0,118290.0,1.27850257]
[1753547259363,0.09919725,118300.0,118290.0,1.28687324]
[1753547260399,0.09919725,118300.0,118290.0,1.55137324]
[1753547260960,0.09919725,118300.0,118290.0,1.55037324]
[1753547261170,0.09919725,118300.0,118290.0,1.55437324]
[1753547261843,0.09919725,118300.0,118290.0,1.55737324]
[1753547280544,0.09919725,118300.0,118290.0,1.42889324]
[1753547280740,0.09919725,118300.0,118290.0,1.55729324]
[1753547300626,0.09919725,118300.0,118290.0,1.55432324]
[1753547301061,0.09919725,118300.0,118290.0,0.81719418]
[1753547301272,0.09919725,118300.0,118290.0,1.55432324]
[1753547307268,0.09919725,118300.0,118290.0,1.55745324]
[1753547307498,0.09919725,118300.0,118290.0,1.54908257]
[1753547308235,0.09919725,118300.0,118290.0,1.52965257]
[1753547308469,0.10124725,118300.0,118290.0,1.52965257]
[1753547312003,0.10124725,118300.0,118290.0,1.55483635]
[1753547316057,0.10124725,118300.0,118290.0,1.53833635]
[1753547316931,0.09919725,118300.0,118290.0,1.53833635]
[1753547320258,0.10124725,118300.0,118290.0,1.53833635]
[1753547323098,0.10124725,118300.0,118290.0,0.80120729]
[1753547323320,0.10124725,118300.0,118290.0,1.53833635]
[1753547327400,0.09919725,118300.0,118290.0,1.53833635]
[1753547330465,0.10124725,118300.0,118290.0,0.80120729]
[1753547330674,0.10124725,118300.0,118290.0,1.53833635]
[1753547331755,0.12471725,118300.0,118290.0,1.53833635]
[1753547331984,0.10124725,118300.0,118290.0,1.53833635]
[1753547337547,0.12799725,118300.0,118290.0,1.53833635]
[1753547338158,0.15909725,118300.0,118290.0,0.59350482]
[1753547338353,0.15909725,118300.0,118290.0,1.09038935]
[1753547341604,0.15909725,118300.0,118290.0,1.11470935]
[1753547343273,0.15909725,118300.0,118290.0,1.09038935]
[1753547343499,0.15909725,118300.0,118290.0,0.67128066]
[1753547343500,0.53611422,118300.0,118290.0,0.67128066]
[1753547343715,0.53611422,118300.0,118290.0,0.68818746]
[1753547343931,0.1760022,118300.0,118290.0,0.68818746]
[1753547344368,0.1760022,118300.0,118290.0,0.67673417]
[1753547344585,0.18445485,118300.0,118290.0,0.68964098]
[1753547344794,0.1760022,118300.0,118290.0,0.69164048]
[1753547345008,0.18445485,118300.0,118290.0,0.68518719]
[1753547345162,0.1760022,118300.0,118290.0,0.69364048]
[1753547345968,0.18445492,118300.0,118290.0,0.68518719]
[1753547346175,0.18445485,118300.0,118290.0,0.68518719]
[1753547346606,0.18445485,118300.0,118290.0,0.41968719]
[1753547346809,0.18445478,118300.0,118290.0,0.42814048]
[1753547347019,0.1929075,118300.0,118290.0,0.40278073]
[1753547347228,0.20136037,118300.0,118290.0,0.25755329]
[1753547347430,0.56992482,118300.0,118290.0,0.40278066]
[1753547347859,0.1929075,118300.0,118290.0,0.40278066]
[1753547348069,0.1929075,118300.0,118290.0,0.41123417]
[1753547348302,0.20136037,118300.0,118290.0,0.41123417]
[1753547348709,0.56147238,118300.0,118290.0,0.39432701]
[1753547348970,0.56992532,118300.0,118290.0,0.40278066]
[1753547349182,0.56992532,118300.0,118290.0,0.39432701]
[1753547349370,1.07053501,118300.0,118290.0,0.17307599]
[1753547349579,5.95730629,118300.0,118290.0,0.30139599]
[1753547349798,5.95730629,118300.0,118290.0,0.13232]
[1753547350000,5.9488535,118300.0,118290.0,0.13232]
[1753547350204,5.9488535,118300.0,118290.0,0.13032]
[1753547350409,5.9488535,118300.0,118290.0,0.12832]
[1753547350610,5.9488535,118300.0,118290.0,0.29839599]
[1753547350822,5.9488535,118300.0,118290.0,0.29939599]
[1753547351234,5.9488535,118300.0,118290.0,0.13032]
[1753547355889,5.9488535,118300.0,118290.0,0.29939599]
[1753547356103,1.0536295,118300.0,118290.0,0.29939599]
[1753547356299,5.9488535,118300.0,118290.0,0.29939599]
[1753547357437,5.57183603,118300.0,118290.0,0.29939599]
[1753547357659,5.94040056,118300.0,118290.0,0.29939599]
[1753547358761,5.94040056,118300.0,118290.0,0.29855968]
[1753547359382,5.94885343,118300.0,118290.0,0.29855968]
[1753547361449,5.77979173,118300.0,118290.0,0.29855968]
[1753547361879,5.94885343,118300.0,118290.0,0.29855968]
[1753547362472,1.05362943,118300.0,118290.0,0.29855968]
[1753547362725,5.94885343,118300.0,118290.0,0.29855968]
[1753547363344,5.5802889,118300.0,118290.0,0.29855968]
[1753547363787,5.94885343,118300.0,118290.0,0.29855968]
[1753547366707,5.94661332,118300.0,118290.0,0.29855968]
[1753547367755,1.05138932,118300.0,118290.0,0.29855968]
[1753547367940,5.94661332,118300.0,118290.0,0.29855968]
[1753547368980,5.94661332,118300.0,118290.0,0.38303698]
[1753547369185,5.94661332,118300.0,118290.0,0.39149077]
[1753547369600,5.94661332,118300.0,118290.0,0.30701347]
[1753547370005,5.77755119,118300.0,118290.0,0.31546719]
[1753547370224,5.7860042,118300.0,118290.0,0.31546719]
[1753547370438,5.7860042,118300.0,118290.0,0.32392084]
[1753547370647,5.7860042,118300.0,118290.0,0.31546719]
[1753547370852,5.76064567,118300.0,118290.0,0.31546719]
[1753547371216,5.34268358,118300.0,118290.0,0.72779852]
[1753547371640,5.37075358,118300.0,118290.0,0.72779852]
[1753547372057,5.36230114,118300.0,118290.0,0.72779852]
[1753547372259,5.37075358,118300.0,118290.0,0.72779852]
[1753547372678,5.37075358,118300.0,118290.0,0.35923399]
[1753547373325,5.37075358,118300.0,118290.0,0.72779852]
[1753547373550,5.37920616,118300.0,118290.0,0.72779852]
[1753547373964,5.37075358,118300.0,118290.0,0.72779852]
[1753547374172,5.37920609,118300.0,118290.0,0.72779852]
[1753547377551,5.39611139,118300.0,118290.0,0.35923414]
[1753547377739,5.39611139,118300.0,118290.0,0.34883077]
[1753547377954,5.39611139,118300.0,118290.0,0.35728428]
[1753547378174,5.41261139,118300.0,118290.0,0.35728428]
[1753547378383,5.41261139,118300.0,118290.0,0.33237428]
[1753547378589,5.42106468,118300.0,118290.0,0.33237442]
[1753547378763,5.41261174,118300.0,118290.0,0.34082786]
[1753547378974,5.41261174,118300.0,118290.0,0.34082793]
[1753547379228,5.41261174,118300.0,118290.0,0.70939246]
[1753547379424,5.40415895,118300.0,118290.0,0.70939211]
[1753547379694,5.40415895,118300.0,118290.0,0.34082758]
[1753547379834,5.40415895,118300.0,118290.0,0.33237386]
[1753547380817,5.41261174,118300.0,118290.0,0.32392042]
[1753547381033,5.41261174,118300.0,118290.0,0.33237386]
[1753547381226,5.41261174,118300.0,118290.0,0.32392042]
[1753547381641,5.41261174,118300.0,118290.0,0.33237386]
[1753547382278,5.41261174,118300.0,118290.0,0.32392042]
[1753547382719,5.41261174,118300.0,118290.0,0.68403144]
[1753547382946,5.41261174,118300.0,118290.0,0.69248495]
[1753547383172,5.41261174,118300.0,118290.0,0.70093839]
[1753547383462,5.41261174,118300.0,118290.0,0.69248495]
[1753547384365,5.42106468,118300.0,118290.0,0.31546691]
[1753547384597,5.42106468,118300.0,118290.0,0.69248495]
[1753547385066,5.40456468,118300.0,118290.0,0.69248495]
[1753547385888,5.40456468,118300.0,118290.0,0.70093839]
[1753547386121,5.40456461,118300.0,118290.0,0.70939176]
[1753547386558,5.40456461,118300.0,118290.0,0.72584839]
[1753547386779,5.40456461,118300.0,118290.0,0.73430176]
[1753547387914,5.40456461,118300.0,118290.0,0.72584839]
[1753547388131,5.3961121,118300.0,118290.0,0.72584839]
[1753547388346,5.3961121,118300.0,118290.0,0.73430176]
[1753547388558,5.3961121,118300.0,118290.0,0.72584811]
[1753547388985,5.3961121,118300.0,118290.0,0.35728358]
[1753547389201,5.3961121,118300.0,118290.0,0.72584811]
[1753547389623,5.3961121,118300.0,118290.0,0.71739474]
[1753547389842,5.3961121,118300.0,118290.0,0.72584811]
[1753547390525,5.3961121,118300.0,118290.0,0.71739474]
[1753547391000,5.3961121,118300.0,118290.0,0.72584811]
[1753547391311,5.40456504,118300.0,118290.0,0.71739474]
[1753547391524,5.3961121,118300.0,118290.0,0.72584811]
[1753547391734,5.3961121,118300.0,118290.0,0.71739474]
[1753547392786,5.3961121,118300.0,118290.0,0.72584811]
[1753547393544,5.3961121,118300.0,118290.0,0.71739474]
[1753547393956,5.40456504,118300.0,118290.0,0.71739474]
[1753547394368,5.40456504,118300.0,118290.0,0.72584811]
[1753547394590,5.40456504,118300.0,118290.0,0.71739474]
[1753547394877,0.50934104,118300.0,118290.0,0.71739474]
[1753547395141,5.40456504,118300.0,118290.0,0.71739474]
[1753547395384,0.43695714,118300.0,118290.0,1.30055716]
[1753547395603,0.44540972,118300.0,118290.0,1.30055716]
[1753547395830,0.43695714,118300.0,118290.0,1.30055716]
[1753547396324,0.09695714,118300.0,118290.0,1.30055716]
[1753547397019,0.09695714,118300.0,118290.0,1.56505716]
[1753547397231,0.09695714,118300.0,118290.0,1.56405716]
[1753547397529,0.09695714,118300.0,118290.0,1.57005716]
[1753547402303,0.09695714,118300.0,118290.0,1.57077347]
[1753547411542,0.09695714,118300.0,118290.0,1.44257347]
[1753547411756,0.09695714,118300.0,118290.0,1.57077347]
[1753547411962,0.09695714,118300.0,118290.0,1.44257347]
[1753547412371,0.09695714,118300.0,118290.0,1.57073347]
[1753547440903,0.09695714,118300.0,118290.0,1.59668777]
[1753547443571,0.09695714,118300.0,118290.0,1.61413679]
[1753547444725,0.09695714,118300.0,118290.0,1.48597679]
[1753547444945,0.09695714,118300.0,118290.0,1.61409679]
[1753547445187,0.09695714,118300.0,118290.0,1.63948379]
[1753547446745,0.09695714,118300.0,118290.0,1.51136379]
[1753547447025,0.09695714,118300.0,118290.0,1.63948379]
[1753547458173,0.09695714,118300.0,118290.0,1.84248379]
[1753547462249,0.0002,118310.0,118300.0,0.96364914]
[1753547462517,0.0002,118310.0,118300.0,1.29088374]
[1753547462746,0.0002,118310.0,118300.0,1.28765374]
[1753547463604,0.0002,118310.0,118300.0,1.28965374]
[1753547464274,0.0002,118310.0,118300.0,0.79300921]
[1753547464489,0.00216,118310.0,118300.0,0.92108921]
[1753547464700,0.00220851,118310.0,118300.0,0.92108921]
[1753547465833,0.00220851,118310.0,118300.0,0.42444468]
[1753547466052,0.02966851,118310.0,118300.0,0.88898921]
[1753547466274,0.02966851,118310.0,118300.0,0.76090921]
[1753547466497,0.02966851,118310.0,118300.0,0.88898921]
[1753547468031,0.02966851,118310.0,118300.0,1.15448921]
[1753547468455,0.00532851,118310.0,118300.0,1.05760921]
[1753547468655,0.00532851,118310.0,118300.0,1.15448921]
[1753547468874,0.02966851,118310.0,118300.0,1.15448921]
[1753547469960,0.02458851,118310.0,118300.0,1.18608921]
[1753547470135,0.00024851,118310.0,118300.0,1.18931921]
[1753547473484,0.00024851,118310.0,118300.0,1.18608921]
[1753547476394,0.00024851,118310.0,118300.0,1.18931921]
[1753547479570,1e-08,118320.0,118310.0,0.19440365]
[1753547479787,0.3719,118330.0,118320.0,0.19438723]
[1753547480001,0.3739085,118330.0,118320.0,0.77550906]
[1753547481633,0.3991085,118330.0,118320.0,0.77550906]
[1753547482185,0.4001085,118330.0,118320.0,0.78385621]
[1753547482585,0.4011085,118330.0,118320.0,0.78385621]
[1753547482796,0.4011085,118330.0,118320.0,0.86833349]
[1753547487650,0.4011085,118330.0,118320.0,0.49976896]
[1753547487934,0.4011085,118330.0,118320.0,0.86833349]
[1753547488173,0.3780585,118330.0,118320.0,0.86833349]
[1753547488416,0.3780585,118330.0,118320.0,0.89223349]
[1753547488879,0.3780585,118330.0,118320.0,1.15773349]
[1753547489862,0.3780585,118330.0,118320.0,1.02965349]
[1753547490015,0.3780585,118330.0,118320.0,1.15773349]
[1753547490824,0.3780585,118330.0,118320.0,1.15769349]
[1753547492298,0.4011085,118330.0,118320.0,1.13379349]
[1753547492783,0.3780585,118330.0,118320.0,1.15769349]
[1753547493521,0.3422485,118330.0,118320.0,1.15980349]
[1753547493744,0.3422485,118330.0,118320.0,1.16281349]
[1753547495848,0.3422485,118330.0,118320.0,1.56297802]
[1753547496552,0.3422485,118330.0,118320.0,1.19441349]
[1753547496755,0.3422485,118330.0,118320.0,1.06637349]
[1753547496891,0.3422485,118330.0,118320.0,1.56297802]
[1753547497714,0.3422485,118330.0,118320.0,1.19441349]
[1753547497918,0.3602485,118330.0,118320.0,0.78278781]
[1753547498136,0.73193303,118330.0,118320.0,0.78912896]
[1753547498548,0.72881303,118330.0,118320.0,0.78912896]
[1753547498748,0.72881303,118330.0,118320.0,0.79123896]
[1753547499700,0.3602485,118330.0,118320.0,0.79123896]
[1753547500041,0.72881303,118330.0,118320.0,0.79123896]
[1753547500454,0.3602485,118330.0,118320.0,0.79123896]
[1753547500661,0.72881303,118330.0,118320.0,0.79123896]
[1753547500931,0.71281303,118330.0,118320.0,0.66319896]
[1753547501149,0.73726332,118330.0,118320.0,0.79123896]
[1753547501357,0.78808376,118330.0,118320.0,0.73152771]
[1753547501568,0.79653427,118330.0,118320.0,0.76533332]
[1753547501799,0.42796974,118330.0,118320.0,0.63729346]
[1753547502001,0.79653427,118330.0,118320.0,0.77378468]
[1753547502225,0.78808376,118330.0,118320.0,0.78923303]
[1753547502435,0.76503376,118330.0,118320.0,0.78923303]
[1753547502638,0.76503376,118330.0,118320.0,0.78078181]
[1753547502818,0.79653441,118330.0,118320.0,0.75688231]
[1753547503030,0.78808376,118330.0,118320.0,0.75688231]
[1753547503995,0.55813593,118320.0,118310.0,0.43454741]
[1753547504214,1.29726499,118320.0,118310.0,0.64706471]
[1753547504435,0.78583733,118320.0,118310.0,0.64706471]
[1753547504661,0.78583733,118320.0,118310.0,0.65551708]
[1753547504662,0.79428898,118320.0,118310.0,0.65551708]
[1753547504866,0.78583733,118320.0,118310.0,0.65551708]
[1753547505072,0.78583733,118320.0,118310.0,0.64706471]
[1753547505289,0.79428898,118320.0,118310.0,0.65551708]
[1753547505940,0.78583733,118320.0,118310.0,0.65551708]
[1753547506346,0.78583733,118320.0,118310.0,0.66396937]
[1753547506800,0.79428898,118320.0,118310.0,0.65551708]
[1753547506995,0.79428891,118320.0,118310.0,0.66396937]
[1753547507662,0.7858369,118320.0,118310.0,0.68087367]
[1753547507893,0.79428834,118320.0,118310.0,0.67242159]
[1753547508600,0.80273992,118320.0,118310.0,0.66396937]
[1753547508817,0.79428834,118320.0,118310.0,0.66396937]
[1753547509033,0.80273992,118320.0,118310.0,0.66396937]
[1753547509279,0.80273985,118320.0,118310.0,0.66396937]
[1753547509497,0.80273985,118320.0,118310.0,0.40692159]
[1753547509704,0.79428834,118320.0,118310.0,0.40692159]
[1753547509886,0.79428834,118320.0,118310.0,0.41537374]
[1753547510102,0.7858369,118320.0,118310.0,0.40692159]
[1753547510277,0.7858369,118320.0,118310.0,0.41537374]
[1753547510483,0.79428834,118320.0,118310.0,0.41537374]
[1753547511080,0.79428827,118320.0,118310.0,0.42382582]
[1753547511254,0.42572374,118320.0,118310.0,0.42382582]
[1753547511454,0.79428827,118320.0,118310.0,0.42382582]
[1753547512843,0.79428827,118320.0,118310.0,0.41537345]
[1753547513234,0.79428827,118320.0,118310.0,0.40692137]
[1753547513635,0.79428827,118320.0,118310.0,0.41537345]
[1753547514770,0.79428827,118320.0,118310.0,0.44021345]
[1753547515388,0.79428827,118320.0,118310.0,0.44866546]
[1753547515588,0.7858369,118320.0,118310.0,0.44866546]
[1753547515798,0.79428827,118320.0,118310.0,0.44021345]
[1753547516222,0.77123827,118320.0,118310.0,0.44021345]
[1753547516430,0.39422237,118320.0,118310.0,0.44021338]
[1753547516624,0.7627869,118320.0,118310.0,0.44866532]
[1753547517010,0.7627869,118320.0,118310.0,0.44021338]
[1753547517180,0.7627869,118320.0,118310.0,0.44021345]
[1753547517590,0.7627869,118320.0,118310.0,0.44866546]
[1753547518107,0.7627869,118320.0,118310.0,0.44021345]
[1753547518537,0.77123834,118320.0,118310.0,0.43176137]
[1753547518777,0.7627869,118320.0,118310.0,0.44021345]
[1753547519000,0.7627869,118320.0,118310.0,0.44866546]
[1753547519424,0.75433561,118320.0,118310.0,0.44866546]
[1753547519631,0.76278683,118320.0,118310.0,0.44866511]
[1753547520270,0.75433561,118320.0,118310.0,0.44866511]
[1753547520476,0.76278683,118320.0,118310.0,0.44866511]
[1753547520880,0.76278683,118320.0,118310.0,0.44021317]
[1753547521030,0.76278683,118320.0,118310.0,0.44866511]
[1753547521473,0.76278683,118320.0,118310.0,0.44021317]
[1753547521834,0.77968978,118320.0,118310.0,0.414857]
[1753547522074,0.77968971,118320.0,118310.0,0.42330922]
[1753547522287,1.33188672,118320.0,118310.0,0.38156471]
[1753547522771,6.21865935,118320.0,118310.0,0.16904741]
[1753547522999,0.56710308,118310.0,118300.0,0.4345617]
[1753547523235,0.76860063,118310.0,118300.0,0.65553208]
[1753547523465,0.81164522,118310.0,118300.0,0.65553208]
[1753547523705,0.78628848,118310.0,118300.0,0.67243767]
[1753547523952,0.7778364,118310.0,118300.0,0.68089032]
[1753547524383,0.40927187,118310.0,118300.0,0.6893429]
[1753547524657,0.7778364,118310.0,118300.0,0.6893429]
[1753547524886,0.40927187,118310.0,118300.0,0.6893429]
[1753547525122,0.7778364,118310.0,118300.0,0.68089032]
[1753547525347,0.78628841,118310.0,118300.0,0.67243767]
[1753547525577,0.78628834,118310.0,118300.0,0.68089032]
[1753547525807,0.78628834,118310.0,118300.0,0.67243767]
[1753547526049,0.78628834,118310.0,118300.0,0.54439767]
[1753547526281,0.78628834,118310.0,118300.0,0.67243767]
[1753547526470,0.78628834,118310.0,118300.0,0.68089032]
[1753547526821,0.78628834,118310.0,118300.0,0.70573032]
[1753547527050,0.40927187,118310.0,118300.0,0.7141829]
[1753547527240,0.75478625,118310.0,118300.0,0.53034718]
[1753547527433,0.74633453,118310.0,118300.0,0.53034718]
[1753547527640,0.37777,118310.0,118300.0,0.89891171]
[1753547527854,0.37777,118310.0,118300.0,0.81724743]
[1753547529137,0.38622179,118310.0,118300.0,0.81724743]
[1753547529521,0.38622172,118310.0,118300.0,0.81724743]
[1753547529733,0.38622172,118310.0,118300.0,0.4486829]
[1753547530409,0.37777,118310.0,118300.0,0.4486829]
[1753547531296,0.37468,118310.0,118300.0,0.4537129]
[1753547531862,0.34198,118310.0,118300.0,0.4537129]
[1753547532306,0.34198,118310.0,118300.0,0.4507029]
[1753547533185,0.35728,118310.0,118300.0,0.4507029]
[1753547533533,0.35588,118310.0,118300.0,0.4507029]
[1753547533742,0.34058,118310.0,118300.0,0.4507029]
[1753547534418,4.910524,118320.0,118310.0,0.19440365]
[1753547534646,4.91897508,118320.0,118310.0,0.40894095]
[1753547534853,4.912504,118320.0,118310.0,0.43679095]
[1753547535064,4.92095501,118320.0,118310.0,0.43679095]
[1753547535530,5.252504,118320.0,118310.0,0.43679095]
[1753547535753,0.34,118320.0,118310.0,0.86083224]
[1753547535932,0.34,118320.0,118310.0,0.89253224]
[1753547538972,0.34,118320.0,118310.0,1.15803224]
[1753547539806,0.3402485,118330.0,118320.0,0.19438723]
[1753547540005,0.3402485,118330.0,118320.0,0.41193453]
[1753547540006,0.34869879,118330.0,118320.0,0.41193453]
[1753547540203,0.34869879,118330.0,118320.0,0.43677453]
[1753547540412,0.35067879,118330.0,118320.0,0.43677453]
[1753547540991,0.35167879,118330.0,118320.0,0.43677453]
[1753547541200,0.35267879,118330.0,118320.0,0.43677453]
[1753547541418,0.37642923,118330.0,118320.0,0.43376453]
[1753547541851,0.74499376,118330.0,118320.0,0.43376453]
[1753547543091,0.36797879,118330.0,118320.0,0.43376453]
[1753547543280,0.74499376,118330.0,118320.0,0.43376453]
[1753547543927,0.74499376,118330.0,118320.0,0.4337646]
[1753547545006,0.75344427,118330.0,118320.0,0.6992646]
[1753547545223,0.74499376,118330.0,118320.0,0.69926453]
[1753547545491,0.74499369,118330.0,118320.0,0.69926453]
[1753547545714,0.7534442,118330.0,118320.0,0.6992646]
[1753547546594,0.74499369,118330.0,118320.0,0.6992646]
[1753547546886,0.7534442,118330.0,118320.0,0.6992646]
[1753547548349,0.7381442,118330.0,118320.0,0.6992646]
[1753547548578,0.7381442,118330.0,118320.0,0.69081338]
[1753547548759,0.7381442,118330.0,118320.0,0.69926467]
[1753547548964,0.7381442,118330.0,118320.0,0.70771589]
[1753547549808,0.7381442,118330.0,118320.0,0.69926467]
[1753547550012,0.7381442,118330.0,118320.0,0.70771589]
[1753547550445,0.7381442,118330.0,118320.0,0.69926467]
[1753547550661,0.7381442,118330.0,118320.0,0.71616704]
[1753547550877,0.7381442,118330.0,118320.0,0.70771589]
[1753547551295,0.74659478,118330.0,118320.0,0.69926467]
[1753547551788,0.74659478,118330.0,118320.0,0.69081338]
[1753547552009,0.74659478,118330.0,118320.0,0.70771589]
[1753547552228,0.74659478,118330.0,118320.0,0.69926467]
[1753547552616,0.36957967,118330.0,118320.0,0.69926467]
[1753547552823,0.7381442,118330.0,118320.0,0.69926467]
[1753547553257,0.7381442,118330.0,118320.0,0.70771589]
[1753547553697,0.74659478,118330.0,118320.0,0.69926467]
[1753547553910,0.74659478,118330.0,118320.0,0.69081338]
[1753547554125,0.74659478,118330.0,118320.0,0.69926467]
[1753547554352,0.74659478,118330.0,118320.0,0.69081338]
[1753547554777,0.7706455,118330.0,118320.0,0.69926482]
[1753547555254,0.93121455,118330.0,118320.0,0.67391043]
[1753547555465,0.78103571,118330.0,118320.0,0.67189043]
[1753547555701,0.96465404,118330.0,118320.0,0.64701043]
[1753547555927,0.95620346,118330.0,118320.0,0.64701043]
[1753547556827,0.95620346,118330.0,118320.0,0.38151043]
[1753547557241,5.84297674,118330.0,118320.0,0.38151043]
[1753547557450,5.47441221,118330.0,118320.0,0.38151043]
[1753547557675,5.84297674,118330.0,118320.0,0.38151043]
[1753547557881,5.83452587,118330.0,118320.0,0.38151043]
[1753547558517,0.93930187,118330.0,118320.0,0.38151043]
[1753547558723,5.83452587,118330.0,118320.0,0.38151043]
[1753547559368,5.84297674,118330.0,118320.0,0.38151043]
[1753547560820,5.85142739,118330.0,118320.0,0.38151043]
[1753547561247,5.68240855,118330.0,118320.0,0.38996208]
[1753547561479,5.68240855,118330.0,118320.0,0.40466043]
[1753547561932,5.66550703,118330.0,118320.0,0.38996201]
[1753547562282,5.66780899,118330.0,118320.0,0.41311201]
[1753547562472,5.67625993,118330.0,118320.0,0.41311208]
[1753547562950,5.66780899,118330.0,118320.0,0.42156366]
[1753547563126,5.66780891,118330.0,118320.0,0.42156366]
[1753547563348,5.66780891,118330.0,118320.0,0.43001517]
[1753547564401,5.66780891,118330.0,118320.0,0.42156366]
[1753547564846,5.66780891,118330.0,118320.0,0.43001517]
[1753547565270,5.66780884,118330.0,118320.0,0.43001517]
[1753547565660,0.78103563,118330.0,118320.0,0.42156366]
[1753547566083,0.78103563,118330.0,118320.0,0.43001517]
[1753547566301,0.78103563,118330.0,118320.0,0.42156366]
[1753547566516,0.78948657,118330.0,118320.0,0.41311208]
[1753547566721,0.78103563,118330.0,118320.0,0.42156366]
[1753547567444,0.78103563,118330.0,118320.0,0.43001517]
[1753547567774,0.76523563,118330.0,118320.0,0.42156366]
[1753547567985,0.76523563,118330.0,118320.0,0.43001517]
[1753547568697,0.76523563,118330.0,118320.0,0.42156366]
[1753547568930,0.76523563,118330.0,118320.0,0.43001517]
[1753547569386,0.76523563,118330.0,118320.0,0.42156366]
[1753547570048,0.77368657,118330.0,118320.0,0.41311208]
[1753547570247,0.76523563,118330.0,118320.0,0.42156366]
[1753547570532,0.76523563,118330.0,118320.0,0.41311208]
[1753547570752,0.76523563,118330.0,118320.0,0.42156366]
[1753547571006,0.3966711,118330.0,118320.0,0.43001517]
[1753547571194,0.76523563,118330.0,118320.0,0.42156366]
[1753547572505,0.76523563,118330.0,118320.0,0.43001517]
[1753547572739,0.76523563,118330.0,118320.0,0.42156366]
[1753547572950,0.76219563,118330.0,118320.0,0.42156366]
[1753547574028,0.76219563,118330.0,118320.0,0.43001517]
[1753547574261,0.74659563,118330.0,118320.0,0.43001517]
[1753547574493,0.74659563,118330.0,118320.0,0.42156366]
[1753547574985,0.74659563,118330.0,118320.0,0.43001517]
[1753547576084,0.74659563,118330.0,118320.0,0.42156366]
[1753547576261,0.74659563,118330.0,118320.0,0.43001517]
[1753547576489,0.74659563,118330.0,118320.0,0.42156366]
[1753547576654,0.74659563,118330.0,118320.0,0.43001517]
[1753547577911,0.74659563,118330.0,118320.0,0.42156366]
[1753547578118,0.74659563,118330.0,118320.0,0.43001517]
[1753547579683,0.74659563,118330.0,118320.0,0.42156366]
[1753547579899,0.7550465,118330.0,118320.0,0.42156366]
[1753547580311,0.74659563,118330.0,118320.0,0.43001517]
[1753547582229,0.74659563,118330.0,118320.0,0.42156366]
[1753547583663,0.74659563,118330.0,118320.0,0.43001517]
[1753547584754,0.74659563,118330.0,118320.0,0.42156366]
[1753547584971,0.74659563,118330.0,118320.0,0.41311208]
[1753547585181,0.75504657,118330.0,118320.0,0.41311208]
[1753547585603,0.75504657,118330.0,118320.0,0.42156366]
[1753547586027,0.7550465,118330.0,118320.0,0.42156366]
[1753547586252,0.91561519,118330.0,118320.0,0.40466043]
[1753547586729,0.74659635,118330.0,118320.0,0.40466043]
[1753547586947,0.74659635,118330.0,118320.0,0.41311208]
[1753547588694,0.73814541,118330.0,118320.0,0.42156366]
[1753547588912,0.73814541,118330.0,118320.0,0.43001517]
[1753547589381,0.73814541,118330.0,118320.0,0.42156366]
[1753547589606,0.36958088,118330.0,118320.0,0.42156366]
[1753547589822,0.72969454,118330.0,118320.0,0.42156366]
[1753547590045,0.72969454,118330.0,118320.0,0.43001517]
[1753547590267,0.72969419,118330.0,118320.0,0.43846661]
[1753547590561,0.74659527,118330.0,118320.0,0.43001517]
[1753547590780,0.74659527,118330.0,118320.0,0.42156366]
[1753547590998,0.74659527,118330.0,118320.0,0.40466043]
[1753547591199,0.74659527,118330.0,118320.0,0.41311208]
[1753547591413,0.91561476,118330.0,118320.0,0.40466043]
[1753547592064,0.90716425,118330.0,118320.0,0.40466043]
[1753547592524,0.02535424,118320.0,118310.0,0.4668197]
[1753547592750,0.02535424,118320.0,118310.0,0.2655]
[1753547592751,6.21879921,118320.0,118310.0,0.2655]
[1753547592981,6.21879921,118320.0,118310.0,0.39346]
[1753547593453,5.85023468,118320.0,118310.0,0.39346]
[1753547594406,5.79498468,118320.0,118310.0,0.58632741]
[1753547595272,5.79498468,118320.0,118310.0,0.32927978]
[1753547595273,5.80343633,118320.0,118310.0,0.32927978]
[1753547595488,5.62595126,118320.0,118310.0,0.337732]
[1753547595704,5.64285356,118320.0,118310.0,0.32927978]
[1753547595944,5.65130521,118320.0,118310.0,0.32082741]
[1753547596196,5.65130521,118320.0,118310.0,0.32927978]
[1753547596717,5.6428542,118320.0,118310.0,0.32082741]
[1753547597235,5.6428542,118320.0,118310.0,0.32927978]
[1753547598276,5.63440255,118320.0,118310.0,0.33773207]
[1753547598490,5.64285413,118320.0,118310.0,0.33773207]
[1753547600259,5.25212766,118310.0,118300.0,0.3377875]
[1753547600514,5.26266981,118310.0,118300.0,0.43071803]
[1753547600785,5.28113974,118310.0,118300.0,0.33778779]
[1753547600998,5.65815656,118310.0,118300.0,0.32933478]
[1753547601325,5.65815656,118310.0,118300.0,0.3208817]
[1753547601598,5.65815656,118310.0,118300.0,0.3220017]
[1753547601842,5.65815656,118310.0,118300.0,0.2981817]
[1753547602118,5.68120656,118310.0,118300.0,0.2981817]
[1753547602341,5.68120656,118310.0,118300.0,0.30663478]
[1753547602597,5.68120656,118310.0,118300.0,0.30863478]
[1753547602880,5.68120656,118310.0,118300.0,0.30763478]
[1753547603146,5.31264203,118310.0,118300.0,0.30663478]
[1753547603335,5.65745427,118310.0,118300.0,0.34736066]
[1753547603571,5.63440427,118310.0,118300.0,0.33890779]
[1753547603819,5.63440427,118310.0,118300.0,0.35581352]
[1753547604101,5.63440427,118310.0,118300.0,0.3558136]
[1753547604400,5.62278219,118310.0,118300.0,0.36426625]
[1753547604690,5.62278219,118310.0,118300.0,0.35581317]
[1753547604914,5.62278219,118310.0,118300.0,0.35792317]
[1753547605178,5.62278219,118310.0,118300.0,0.35792324]
[1753547605454,5.63123427,118310.0,118300.0,0.35792324]
[1753547605955,5.6312342,118310.0,118300.0,0.35792324]
[1753547605984,5.62278219,118310.0,118300.0,0.35792324]
[1753547606233,5.25421766,118310.0,118300.0,0.36637589]
[1753547606508,5.62278212,118310.0,118300.0,0.36637546]
[1753547606770,5.25421759,118310.0,118300.0,0.36637546]
[1753547607002,5.26266967,118310.0,118300.0,0.34101751]
[1753547607240,5.26266967,118310.0,118300.0,0.3494703]
[1753547607482,0.5570991,118280.0,118270.0,0.12296334]
[1753547607724,6.26333987,118280.0,118270.0,0.12296334]
[1753547607954,6.4383642,118280.0,118270.0,0.09775334]
[1753547608190,6.4637722,118280.0,118270.0,0.09775334]
[1753547608879,6.48965041,118280.0,118270.0,0.09780185]
[1753547609107,6.57412771,118280.0,118270.0,0.09780185]
[1753547609325,6.59784853,118280.0,118270.0,0.09780185]
[1753547609569,6.58603465,118280.0,118270.0,0.09780185]